fUSD/lending_fUSD_20260218
["ID","MTS","AMOUNT","RATE_DAILY","PERIOD"]
[405928580,1771419709858,-1709.03,0.00044514,120]
[405928581,1771419709883,-1709.03,0.00044514,120]
[405928582,1771419709908,-1709.03,0.00044514,120]
[405928583,1771419709932,-1709.03,0.00044514,120]
[405928584,1771419709972,-471.48,0.00044528,30]
[405928585,1771419709997,-560.07,0.00044528,30]
[405928586,1771419710022,-476.44,0.00044528,30]
[405928587,1771419710048,-182.19,0.00044528,30]
[405928588,1771419710073,-561.83,0.00044528,30]
[405928589,1771419710102,-201.45,0.00044528,30]
[405928590,1771419710127,-150.4,0.00044528,30]
[405928591,1771419710152,-150.0,0.00044528,30]
[405928592,1771419710179,-150.0,0.00044528,30]
[405928593,1771419710204,-562.28,0.00044528,30]
[405928594,1771419710229,-177.33,0.00044528,30]
[405928595,1771419710253,-560.22,0.00044528,30]
[405928596,1771419710279,-476.23,0.00044528,30]
[405928597,1771419710304,-150.0,0.00044528,30]
[405928598,1771419710330,-471.53,0.00044528,30]
[405928599,1771419710355,-150.0,0.00044528,30]
[405928600,1771419710380,-201.47,0.00044528,30]
[405928601,1771419710406,-471.58,0.00044528,30]
[405928602,1771419710432,-20501.64457345,0.00044528,70]
[405928603,1771419710457,-150.0,0.00044536,30]
[405928604,1771419710483,-154.96,0.000446,80]
[405928605,1771419710509,-150.0,0.000446,30]
[405928606,1771419710536,-535.24,0.0004463,120]
[405928607,1771419710563,-500.0,0.0004463,120]
[405928608,1771419710588,-4686.745,0.00044657,120]
[405928609,1771419710614,-2568.4,0.00044692,30]
[405928610,1771419710639,-500.0,0.00044693,47]
[405928611,1771419710664,-500.0,0.00044693,49]
[405928612,1771419710690,-500.0,0.00044693,51]
[405928613,1771419710715,-500.0,0.00044693,52]
[405928614,1771419710741,-500.0,0.00044693,55]
[405928615,1771419710767,-500.0,0.00044693,56]
[405928616,1771419710792,-500.0,0.00044693,57]
[405928617,1771419710819,-162.380719,0.00044693,47]
[405928618,1771419710846,-537.6845,0.00044693,47]
[405928619,1771419710871,-168.3888056,0.00044693,49]
[405928620,1771419710896,-557.5788265,0.00044693,49]
[405928621,1771419710921,-174.61919141,0.00044693,51]
[405928622,1771419710946,-578.20924308,0.00044693,51]
[405928623,1771419710971,-181.08010149,0.00044693,52]
[405928624,1771419710997,-599.60298507,0.00044693,52]
[405928625,1771419711022,-187.78006525,0.00044693,55]
[405928626,1771419711049,-621.78829552,0.00044693,55]
[405928627,1771419711074,-194.72792766,0.00044693,56]
[405928628,1771419711103,-644.79446246,0.00044693,56]
[405928629,1771419711128,-201.93286099,0.00044693,57]
[405928630,1771419711160,-668.65185757,0.00044693,57]
[405928631,1771419711187,-1075.369,0.00044693,47]
[405928632,1771419711212,-1115.157653,0.00044693,49]
[405928633,1771419711239,-1156.41848616,0.00044693,51]
[405928634,1771419711266,-1199.20597015,0.00044693,52]
[405928635,1771419711292,-1243.57659104,0.00044693,55]
[405928636,1771419711317,-1289.58892491,0.00044693,56]
[405928637,1771419711341,-1337.30371513,0.00044693,57]
[405928638,1771419711366,-1386.78395259,0.00044693,58]
[405928639,1771419711390,-1438.09495884,0.00044693,59]
[405928640,1771419711414,-1491.30447232,0.00044693,60]
[405928641,1771419711439,-1546.48273779,0.00044693,61]
[405928642,1771419711464,-500.0,0.00044694,30]
[405928643,1771419711490,-262.06588977,0.00044694,30]
[405928644,1771419711516,-1000.0,0.00044694,30]
[405928645,1771419711541,-156.587,0.00044694,30]
[405928646,1771419711568,-156.587,0.00044694,30]
[405928647,1771419711741,-518.5,0.00044694,30]
[405928648,1771419711771,-1037.0,0.00044694,30]
[405928649,1771419711799,-473.20037566,0.00044694,30]
[405928650,1771419711826,-307.2,0.00044695,120]
[405928651,1771419711852,-500.0,0.00044695,120]
[405928652,1771419711879,-200.0,0.00044695,120]
[405928653,1771419711905,-500.0,0.00044695,120]
[405928654,1771419711931,-250.0,0.00044695,120]
[405928655,1771419711956,-151.0,0.00044695,120]
[405928656,1771419711981,-1000.0,0.00044695,120]
[405928657,1771419712008,-151.0,0.00044695,120]
[405928658,1771419712034,-151.0,0.00044695,120]
[405928659,1771419712061,-500.0,0.00044695,120]
[405928660,1771419712091,-1000.0,0.00044695,120]
[405928661,1771419712117,-1000.0,0.00044695,120]
[405928662,1771419712144,-1105.0,0.00044696,30]
[405928663,1771419712169,-244.59677746,0.00044696,30]
[405928664,1771419712194,-230.78055904,0.00044696,30]
[405928665,1771419712222,-150.0,0.00044699,120]
[405928666,1771419712247,-315.75464104,0.000447,120]
[405928667,1771419712272,-1011.83689154,0.000447,120]
[405928668,1771419712299,-153.73,0.00044747,120]
[405928669,1771419712326,-535.24,0.00044767,120]
[405928670,1771419712354,-320.32410332,0.00044767,120]
[405928671,1771419712381,-150.0,0.00044768,120]
[405928672,1771419712406,-1000.0,0.00044794,120]
[405928673,1771419712434,-200.0,0.00044796,60]
[405928674,1771419712462,-800.0,0.000448,120]
[405928675,1771419712491,-468.11,0.00044801,120]
[405928676,1771419712519,-153.73,0.00044847,120]
[405928677,1771419712544,-150.0,0.00044875,120]
[405928678,1771419712570,-283.12,0.00044885,120]
[405928679,1771419712596,-2269.28798296,0.0004489,120]
[405928680,1771419712621,-2500.0,0.000449,120]
[405928681,1771419712646,-2471.60483153,0.000449,30]
[405928682,1771419712673,-468.11,0.00044901,120]
[405928683,1771419712699,-535.24,0.00044904,120]
[405928684,1771419712725,-1999.0,0.00044931,120]
[405928685,1771419712751,-11479.0,0.00044932,120]
[405928686,1771419712779,-153.73,0.00044947,120]
[405928687,1771419712805,-213.0,0.0004496,30]
[405928688,1771419712830,-40000.0,0.00044989,120]
[405928689,1771419712856,-150.0,0.00044995,120]
[405928690,1771419712882,-50000.0,0.00045,69]
[405928691,1771419712908,-600.0,0.00045,120]
[405928692,1771419712933,-552.00362886,0.00045,120]
[405928693,1771419712958,-1142.48482224,0.00045,32]
[405928694,1771419712984,-372.50023696,0.00045,120]
[405928695,1771419713009,-151.96130921,0.00045,30]
[405928696,1771419713034,-1027.96762699,0.00045,120]
[405928697,1771419713061,-150.0,0.00045,120]
[405928698,1771419713091,-700.0,0.00045,120]
[405928699,1771419713117,-1068.98963786,0.00045,120]
[405928700,1771419713144,-160.0,0.00045,30]
[405928701,1771419713170,-160.4,0.00045,85]
[405928702,1771419713197,-10000.0,0.00045,120]
[405928703,1771419713224,-150.0,0.00045,120]
[405928704,1771419713250,-497.85957271,0.00045,120]
[405928705,1771419713278,-150.0,0.00045,120]
[405928706,1771419713304,-62000.0,0.00045,30]
[405928707,1771419713330,-1000.0,0.00045,120]
[405928708,1771419713356,-97968.64868978,0.00045,120]
[405928709,1771419713382,-1361.8713574,0.00045,120]
[405928710,1771419713409,-10000.0,0.00045,120]
[405928711,1771419713435,-2000.0,0.00045,120]
[405928712,1771419713461,-10000.0,0.00045,120]
[405928713,1771419713488,-500.0,0.00045,30]
[405928714,1771419713514,-21918.99060559,0.00045,120]
[405928715,1771419713540,-200.0,0.00045,120]
[405928716,1771419713566,-1741.40399872,0.00045,60]
[405928717,1771419713593,-60000.0,0.00045,60]
[405928718,1771419713619,-8842.26126269,0.00045,30]
[405928719,1771419713645,-537.18,0.00045,120]
[405928720,1771419713670,-1021.14,0.00045,120]
[405928721,1771419713694,-744.89380258,0.00045,120]
[405928722,1771419713718,-1264.07324498,0.00045,120]
[405928723,1771419713742,-963.52131851,0.00045,30]
[405928724,1771419713765,-222.570688,0.00045,30]
[405928725,1771419713788,-2333.65353314,0.00045,120]
[405928726,1771419713812,-872.21499182,0.00045,120]
[405928727,1771419713836,-345.35076563,0.00045,30]
[405928728,1771419713860,-2675.33348073,0.00045,120]
[405928729,1771419713885,-1049.92058381,0.00045,120]
[405928730,1771419713911,-26727.0,0.00045,120]
[405928731,1771419713936,-16667.23,0.00045,120]
[405928732,1771419713961,-193.0,0.00045,120]
[405928733,1771419713985,-500.0,0.00045,120]
[405928734,1771419714009,-8890.0,0.00045,30]
[405928735,1771419714034,-2177.11,0.00045,120]
[405928736,1771419714058,-238.16,0.00045,120]
[405928737,1771419714083,-79708.42,0.00045,120]
[405928738,1771419714110,-500.0,0.00045,120]
[405928739,1771419714137,-468.11,0.00045001,120]
[405928740,1771419714162,-325.99,0.0004501,120]
[405928741,1771419714185,-535.24,0.00045041,120]
[405928742,1771419714210,-153.73,0.00045047,120]
[405928743,1771419714234,-150.0,0.00045048,120]
[405928744,1771419714258,-150.0,0.00045057,120]
[405928745,1771419714281,-152.0,0.000451,120]
[405928746,1771419714306,-468.11,0.00045101,120]
[405928747,1771419714331,-153.80524795,0.00045147,120]
[405928748,1771419714355,-206.30397033,0.00045176,120]
[405928749,1771419714379,-535.24,0.00045178,120]
[405928750,1771419714404,-831.94791482,0.000452,120]
[405928751,1771419714430,-468.11,0.00045201,120]
[405928752,1771419714591,-500.0,0.00045244,60]
[405928753,1771419714617,-468.11,0.00045301,120]
[405928754,1771419714642,-535.24,0.00045315,120]
[405928755,1771419714668,-150.0,0.00045327,120]
[405928756,1771419714694,-468.11,0.00045401,120]
[405928757,1771419714718,-251.21344382,0.00045421,120]
[405928758,1771419714742,-535.24,0.00045452,120]
[405928759,1771419714768,-1999.0,0.00045479,120]
[405928760,1771419714792,-7030.1175,0.00045479,120]
[405928761,1771419714817,-500.0,0.000455,120]
[405928762,1771419714842,-193.0,0.000455,120]
[405928763,1771419714867,-500.0,0.000455,120]
[405928764,1771419714894,-468.11,0.00045501,120]
[405928765,1771419714920,-150.0,0.0004551,120]
[405928766,1771419714946,-150.0,0.00045516,120]
[405928767,1771419714971,-500.0,0.0004555,120]
[405928768,1771419714996,-535.415043,0.00045589,120]
[405928769,1771419715024,-468.11,0.00045601,120]
[405928770,1771419715048,-200.0,0.00045644,120]
[405928771,1771419715073,-150.0,0.00045645,120]
[405928772,1771419715099,-998.18961854,0.00045665,120]
[405928773,1771419715123,-608.37240995,0.000457,120]
[405928774,1771419715149,-152.0,0.000457,120]
[405928775,1771419715174,-1603.695,0.000457,120]
[405928776,1771419715200,-468.11,0.00045701,120]
[405928777,1771419715227,-150.0,0.00045735,120]
[405928778,1771419715252,-150.0,0.00045753,120]
[405928779,1771419715277,-150.0,0.0004579,120]
[405928780,1771419715302,-187.41015212,0.000458,120]
[405928781,1771419715326,-319.55731988,0.000458,120]
[405928782,1771419715350,-224.70174659,0.000458,120]
[405928783,1771419715376,-468.11,0.00045801,120]
[405928784,1771419715401,-150.0,0.00045824,120]
[405928785,1771419715426,-150.0,0.0004585,120]
[405928786,1771419715450,-5000.0,0.000459,120]
[405928787,1771419715477,-468.11,0.00045901,120]
[405928788,1771419715502,-150.0,0.00045952,120]
[405928789,1771419715526,-206.30397033,0.00045959,120]
[405928790,1771419715551,-1000.0,0.00045999,120]
[405928791,1771419715575,-1000.0,0.00046,30]
[405928792,1771419715599,-205.62396336,0.00046,30]
[405928793,1771419715624,-299.72041445,0.00046,120]
[405928794,1771419715649,-300.0,0.00046,120]
[405928795,1771419715675,-150.0,0.00046,120]
[405928796,1771419715699,-3314.43485631,0.00046,30]
[405928797,1771419715724,-2246.76109079,0.00046,120]
[405928798,1771419715748,-500.0,0.00046,120]
[405928799,1771419715773,-56208.43694568,0.00046,30]
[405928800,1771419715799,-150.0,0.00046,120]
[405928801,1771419715824,-10000.0,0.00046,120]
[405928802,1771419715848,-1606.8585569,0.00046,120]
[405928803,1771419715872,-233.16190327,0.00046,30]
[405928804,1771419715897,-387.35754038,0.00046,90]
[405928805,1771419715923,-3942.19033865,0.00046,120]
[405928806,1771419715949,-500.0,0.00046,120]
[405928807,1771419715974,-468.11,0.00046001,120]
[405928808,1771419715999,-1999.0,0.00046027,120]
[405928809,1771419716024,-150.0,0.00046066,120]
[405928810,1771419716048,-5144.44792945,0.00046089,30]
[405928811,1771419716073,-193.0,0.000461,120]
[405928812,1771419716102,-315.75464104,0.000461,120]
[405928813,1771419716127,-1011.83689154,0.000461,120]
[405928814,1771419716154,-468.11,0.00046101,120]
[405928815,1771419716179,-150.0,0.00046128,120]
[405928816,1771419716204,-150.0,0.00046178,120]
[405928817,1771419716229,-468.11,0.00046201,120]
[405928818,1771419716254,-150.0,0.00046209,120]
[405928819,1771419716280,-150.0,0.00046284,120]
[405928820,1771419716304,-152.0,0.000463,120]
[405928821,1771419716330,-468.11,0.00046301,120]
[405928822,1771419716354,-9373.49,0.00046301,120]
[405928823,1771419716378,-500.0,0.0004634,60]
[405928824,1771419716407,-500000.0,0.000464,30]
[405928825,1771419716433,-468.11,0.00046401,120]
[405928826,1771419716458,-955.23583967,0.0004649,120]
[405928827,1771419716482,-150.0,0.00046495,120]
[405928828,1771419716507,-500.0,0.000465,120]
[405928829,1771419716534,-468.11,0.00046501,120]
[405928830,1771419716559,-150.0,0.00046535,120]
[405928831,1771419716583,-150.0,0.00046546,120]
[405928832,1771419716609,-1999.0,0.00046575,120]
[405928833,1771419716633,-200.0,0.00046592,120]
[405928834,1771419716658,-193.0,0.000466,120]
[405928835,1771419716683,-468.11,0.00046601,120]
[405928836,1771419716707,-500.0,0.0004666,120]
[405928837,1771419716732,-500.0,0.00046695,120]
[405928838,1771419716757,-452.0,0.00046696,120]
[405928839,1771419716783,-468.11,0.00046701,120]
[405928840,1771419716807,-206.30397033,0.00046741,120]
[405928841,1771419716831,-1332.36367332,0.000468,120]
[405928842,1771419716855,-152.0,0.000468,120]
[405928843,1771419716880,-2431.46,0.000468,120]
[405928844,1771419716905,-468.11,0.00046801,120]
[405928845,1771419716930,-2000.0,0.000469,120]
[405928846,1771419716955,-2500.0,0.000469,120]
[405928847,1771419716978,-1456.6,0.000469,120]
[405928848,1771419717001,-1456.6,0.000469,120]
[405928849,1771419717024,-330.028,0.000469,120]
[405928850,1771419717048,-375.1722,0.000469,90]
[405928851,1771419717071,-1483.71323365,0.000469,120]
[405928852,1771419717102,-858.2,0.000469,90]
[405928853,1771419717126,-858.2,0.000469,90]
[405928854,1771419717152,-858.2,0.000469,90]
[405928855,1771419717176,-858.2,0.000469,90]
[405928856,1771419717359,-608.98,0.000469,120]
[405928857,1771419717383,-608.98,0.000469,90]
[405928858,1771419717409,-468.11,0.00046901,120]
[405928859,1771419717439,-1105.0,0.00046931,30]
[405928860,1771419717464,-213.0,0.0004698,30]
[405928861,1771419717491,-1000.0,0.00046999,120]
[405928862,1771419717518,-633.51562493,0.00047,30]
[405928863,1771419717544,-1000.0,0.00047,120]
[405928864,1771419717568,-150.0,0.00047,120]
[405928865,1771419717592,-2500.0,0.00047,120]
[405928866,1771419717619,-150.0,0.00047,120]
[405928867,1771419717643,-437.61219588,0.00047,120]
[405928868,1771419717669,-10000.0,0.00047,120]
[405928869,1771419717694,-500.0,0.00047,120]
[405928870,1771419717719,-2366.13918173,0.00047,120]
[405928871,1771419717745,-26727.0,0.00047,120]
[405928872,1771419717774,-1442.04865449,0.00047,120]
[405928873,1771419717798,-500.0,0.00047,120]
[405928874,1771419717824,-468.11,0.00047001,120]
[405928875,1771419717850,-468.11,0.00047101,120]
[405928876,1771419717879,-911.4830674,0.00047123,120]
[405928877,1771419717904,-11716.8625,0.00047123,120]
[405928878,1771419717929,-224.6331403,0.00047133,120]
[405928879,1771419717954,-193.0,0.000472,120]
[405928880,1771419717979,-187.41015212,0.000472,120]
[405928881,1771419718003,-319.55731988,0.000472,120]
[405928882,1771419718028,-224.70174659,0.000472,120]
[405928883,1771419718054,-468.11,0.00047201,120]
[405928884,1771419718078,-2431.46,0.00047208,120]
[405928885,1771419718109,-238.16,0.0004725,120]
[405928886,1771419718134,-79708.42,0.0004725,120]
[405928887,1771419718160,-468.11,0.00047301,120]
[405928888,1771419718184,-1954.55191415,0.00047308,120]
[405928889,1771419718209,-325.99,0.00047358,120]
[405928890,1771419718234,-152.0,0.000474,120]
[405928891,1771419718260,-468.11,0.00047401,120]
[405928892,1771419718286,-379.28715416,0.0004743,120]
[405928893,1771419718310,-500.0,0.00047436,60]
[405928894,1771419718337,-349.95148667,0.000475,120]
[405928895,1771419718363,-741.68624483,0.000475,120]
[405928896,1771419718387,-500.0,0.000475,120]
[405928897,1771419718412,-315.75464104,0.000475,120]
[405928898,1771419718436,-1011.83689154,0.000475,120]
[405928899,1771419718462,-468.11,0.00047501,120]
[405928900,1771419718488,-206.30397033,0.00047524,120]
[405928901,1771419718519,-200.0,0.00047541,120]
[405928902,1771419718543,-1444.0,0.00047562,120]
[405928903,1771419718570,-468.11,0.00047601,120]
[405928904,1771419718596,-2431.46,0.00047616,120]
[405928905,1771419718620,-15000.0,0.0004769,120]
[405928906,1771419718647,-193.0,0.000477,120]
[405928907,1771419718671,-468.11,0.00047701,120]
[405928908,1771419718695,-500.0,0.0004777,120]
[405928909,1771419718720,-468.11,0.00047801,120]
[405928910,1771419718744,-499.999999,0.0004788,100]
[405928911,1771419718772,-468.11,0.00047901,120]
[405928912,1771419718797,-14060.235,0.00047945,120]
[405928913,1771419718822,-1000.0,0.00047999,120]
[405928914,1771419718847,-442.95291269,0.00048,120]
[405928915,1771419718872,-300.0,0.00048,120]
[405928916,1771419718895,-150.0,0.00048,120]
[405928917,1771419718920,-150.0,0.00048,120]
[405928918,1771419718946,-911.07710345,0.00048,120]
[405928919,1771419718971,-1274.0,0.00048,120]
[405928920,1771419718994,-10000.0,0.00048,120]
[405928921,1771419719028,-1164.81193039,0.00048,120]
[405928922,1771419719057,-2201.13,0.00048,120]
[405928923,1771419719082,-317.13851722,0.00048,120]
[405928924,1771419719110,-1011036.58796142,0.00048,120]
[405928925,1771419719136,-2566.65432796,0.00048,120]
[405928926,1771419719161,-896.93196202,0.00048,120]
[405928927,1771419719186,-3989.40298604,0.00048,120]
[405928928,1771419719213,-1051.76185732,0.00048,120]
[405928929,1771419719238,-152.0,0.00048,120]
[405928930,1771419719262,-3942.19033865,0.00048,120]
[405928931,1771419719289,-1311.8994804,0.00048,120]
[405928932,1771419719314,-500.0,0.00048,120]
[405928933,1771419719340,-468.11,0.00048001,120]
[405928934,1771419719366,-2431.46,0.00048024,120]
[405928935,1771419719392,-468.11,0.00048101,120]
[405928936,1771419719417,-468.11,0.00048201,120]
[405928937,1771419719442,-10046.3104448,0.0004826,120]
[405928938,1771419719470,-526.5072139,0.000483,60]
[405928939,1771419719495,-193.0,0.000483,120]
[405928940,1771419719522,-468.11,0.00048301,120]
[405928941,1771419719547,-206.30397033,0.00048307,120]
[405928942,1771419719571,-27239.98236721,0.000484,30]
[405928943,1771419719597,-468.11,0.00048401,120]
[405928944,1771419719622,-2431.46,0.00048432,120]
[405928945,1771419719646,-200.0,0.0004849,120]
[405928946,1771419719670,-2500.0,0.000485,120]
[405928947,1771419719700,-199930.69417878,0.000485,30]
[405928948,1771419719725,-792.20339512,0.000485,120]
[405928949,1771419719750,-152.0,0.000485,120]
[405928950,1771419719775,-500.0,0.000485,120]
[405928951,1771419719801,-468.11,0.00048501,120]
[405928952,1771419719826,-888.0,0.0004852,73]
[405928953,1771419719851,-300.0,0.00048532,60]
[405928954,1771419719876,-400.0,0.0004855,120]
[405928955,1771419719902,-1663.72,0.000486,120]
[405928956,1771419719928,-468.11,0.00048601,120]
[405928957,1771419719954,-760.33238979,0.0004869,120]
[405928958,1771419719981,-468.11,0.00048701,120]
[405928959,1771419720006,-500.0,0.00048767,120]
[405928960,1771419720251,-608.36088723,0.00048767,120]
[405928961,1771419720277,-16403.6075,0.00048767,120]
[405928962,1771419720302,-40000.0,0.000488,120]
[405928963,1771419720327,-246.12927925,0.000488,120]
[405928964,1771419720352,-1365.34408028,0.000488,120]
[405928965,1771419720378,-193.0,0.000488,120]
[405928966,1771419720403,-468.11,0.00048801,120]
[405928967,1771419720428,-150.0,0.0004882,120]
[405928968,1771419720454,-2431.46,0.0004884,120]
[405928969,1771419720480,-2000.0,0.0004886,78]
[405928970,1771419720505,-15977.07944554,0.00048875,60]
[405928971,1771419720530,-521.59410892,0.0004888,120]
[405928972,1771419720555,-500.0,0.0004888,120]
[405928973,1771419720579,-3279.44505601,0.00048888,120]
[405928974,1771419720604,-9531.06365158,0.00048889,120]
[405928975,1771419720633,-452.0,0.00048896,120]
[405928976,1771419720658,-2000.0,0.000489,120]
[405928977,1771419720684,-1273.63600276,0.000489,120]
[405928978,1771419720709,-5000.0,0.000489,120]
[405928979,1771419720733,-26612.83868747,0.000489,120]
[405928980,1771419720756,-1395.42273455,0.000489,120]
[405928981,1771419720781,-1324.97584734,0.000489,120]
[405928982,1771419720807,-468.11,0.00048901,120]
[405928983,1771419720832,-2000.0,0.0004893,76]
[405928984,1771419720855,-12108.04469883,0.00048956,120]
[405928985,1771419720879,-213.0,0.0004899,30]
[405928986,1771419720905,-2850.0,0.00049,120]
[405928987,1771419720929,-800.08996824,0.00049,30]
[405928988,1771419720955,-1500.0,0.00049,120]
[405928989,1771419720979,-150.0,0.00049,120]
[405928990,1771419721004,-250.0,0.00049,120]
[405928991,1771419721029,-166.35311254,0.00049,30]
[405928992,1771419721053,-58054.49072145,0.00049,120]
[405928993,1771419721077,-20016.39617997,0.00049,120]
[405928994,1771419721104,-10000.0,0.00049,120]
[405928995,1771419721131,-196.66656819,0.00049,30]
[405928996,1771419721155,-172.16125395,0.00049,120]
[405928997,1771419721182,-400.0,0.00049,120]
[405928998,1771419721206,-18021.83030667,0.00049,120]
[405928999,1771419721231,-80731.40087332,0.00049,120]
[405929000,1771419721256,-35000.0,0.00049,90]
[405929001,1771419721281,-35000.0,0.00049,90]
[405929002,1771419721304,-30323.0,0.00049,90]
[405929003,1771419721329,-7000.0,0.00049,120]
[405929004,1771419721354,-293031.6796238,0.00049,30]
[405929005,1771419721378,-336.8102782,0.00049,120]
[405929006,1771419721404,-1216.61620722,0.00049,120]
[405929007,1771419721428,-591.44932912,0.00049,120]
[405929008,1771419721451,-16555.0,0.00049,120]
[405929009,1771419721475,-26727.0,0.00049,120]
[405929010,1771419721501,-468.11,0.00049001,120]
[405929011,1771419721525,-206.30397033,0.0004909,120]
[405929012,1771419721551,-152.0,0.000491,120]
[405929013,1771419721577,-468.11,0.00049101,120]
[405929014,1771419721602,-468.11,0.00049201,120]
[405929015,1771419721628,-2431.46,0.00049248,120]
[405929016,1771419721653,-468.11,0.00049301,120]
[405929017,1771419721676,-5000.0,0.00049315,120]
[405929018,1771419721699,-5000.0,0.00049315,120]
[405929019,1771419721722,-5000.0,0.00049315,120]
[405929020,1771419721746,-5000.0,0.00049315,120]
[405929021,1771419721769,-3332.9,0.00049315,120]
[405929022,1771419721794,-193.0,0.000494,120]
[405929023,1771419721820,-468.11,0.00049401,120]
[405929024,1771419721844,-200.0,0.00049438,120]
[405929025,1771419721868,-2000.0,0.0004944,79]
[405929026,1771419721891,-175.63968789,0.00049442,120]
[405929027,1771419721914,-8669.38120869,0.000495,120]
[405929028,1771419721938,-1388.60347897,0.000495,120]
[405929029,1771419721963,-468.11,0.00049501,120]
[405929030,1771419721987,-2000.0,0.0004953,81]
[405929031,1771419722010,-18746.98,0.00049589,120]
[405929032,1771419722036,-468.11,0.00049601,120]
[405929033,1771419722061,-238.16,0.00049613,120]
[405929034,1771419722088,-79708.42,0.00049613,120]
[405929035,1771419722114,-2431.46,0.00049656,120]
[405929036,1771419722139,-879.0,0.00049658,90]
[405929037,1771419722164,-1426.0,0.00049658,90]
[405929038,1771419722188,-1369.20495112,0.0004969,120]
[405929039,1771419722212,-3312518.82591168,0.000497,120]
[405929040,1771419722237,-152.0,0.000497,120]
[405929041,1771419722263,-468.11,0.00049701,120]
[405929042,1771419722288,-325.99,0.00049706,120]
[405929043,1771419722311,-175.63968789,0.00049721,120]
[405929044,1771419722334,-2000.0,0.0004975,81]
[405929045,1771419722357,-500.0,0.0004977,120]
[405929046,1771419722381,-893.69,0.0004977,120]
[405929047,1771419722405,-20000.0,0.00049799,60]
[405929048,1771419722429,-1217.11237491,0.000498,120]
[405929049,1771419722456,-1677.91006299,0.000498,30]
[405929050,1771419722481,-468.11,0.00049801,120]
[405929051,1771419722505,-1444.0,0.00049863,30]
[405929052,1771419722530,-551703.6,0.00049865,120]
[405929053,1771419722556,-224.6331403,0.00049872,120]
[405929054,1771419722579,-206.30397033,0.00049872,120]
[405929055,1771419722603,-30000.0,0.00049899,120]
[405929056,1771419722627,-43778.59991262,0.000499,120]
[405929057,1771419952576,-180.591,8.009e-05,2]
[405929058,1771419952599,-935.378,8.009e-05,2]
[405929059,1771419952622,-1296.406,8.073e-05,2]
[405929060,1771419952649,-218.0,8.171e-05,2]
[405929061,1771419952672,-300.0,8.171e-05,2]
[405929062,1771419952696,-1200.0,8.171e-05,2]
[405929063,1771419952724,-500.0,8.172e-05,2]
[405929064,1771419952750,-500.0,8.172e-05,2]
[405929065,1771419952774,-500.0,8.172e-05,2]
[405929066,1771419952800,-500.0,8.172e-05,2]
[405929067,1771419952826,-500.0,8.172e-05,2]
[405929068,1771419952849,-500.0,8.172e-05,2]
[405929069,1771419952871,-500.0,8.172e-05,2]
[405929070,1771419952894,-500.0,8.172e-05,2]
[405929071,1771419952916,-500.0,8.172e-05,2]
[405929072,1771419952940,-500.0,8.172e-05,2]
[405929073,1771419952962,-500.0,8.172e-05,2]
[405929074,1771419952987,-369.625,8.172e-05,2]
[405929075,1771419953927,-130.375,8.172e-05,2]
[405929076,1771419953952,-500.0,8.172e-05,2]
[405929077,1771419953976,-500.0,8.172e-05,2]
[405929078,1771419954002,-500.0,8.172e-05,2]
[405929079,1771419954026,-500.0,8.172e-05,2]